[Event "Masters Tournament (MTO)"]
[Site "Biel, Switzerland"]
[Date "2026.07.14"]
[Round "2.45"]
[White "Al Ibrahim, Abdulrahman"]
[Black "Wenger, Arejou"]
[Result "1-0"]
[TimeControl "100+30+30sec/move"]
[WhiteTitle "-"]
[BlackTitle "-"]
[WhiteFideId "10300503"]
[BlackFideId "1336584"]
[WhiteElo "2016"]
[BlackElo "1873"]

1. e4 {[%clk 01:40:13]} {[%emt 00:00:46]} c5 {[%clk 01:40:53]} {[%emt
00:00:08]} 2. Nf3 {[%clk 01:40:32]} {[%emt 00:00:10]} e6 {[%clk 01:41:19]}
{[%emt 00:00:04]} 3. d4 {[%clk 01:40:49]} {[%emt 00:00:13]} cxd4 {[%clk
01:41:44]} {[%emt 00:00:06]} 4. Nxd4 {[%clk 01:41:14]} {[%emt 00:00:04]} Nf6
{[%clk 01:42:09]} {[%emt 00:00:05]} 5. Nc3 {[%clk 01:41:38]} {[%emt 00:00:06]}
Nc6 {[%clk 01:42:35]} {[%emt 00:00:04]} 6. Ndb5 {[%clk 01:40:48]} {[%emt
00:01:20]} Bb4 {[%clk 01:42:13]} {[%emt 00:00:52]} 7. a3 {[%clk 01:40:17]}
{[%emt 00:01:01]} Bxc3+ {[%clk 01:42:37]} {[%emt 00:00:06]} 8. Nxc3 {[%clk
01:40:43]} {[%emt 00:00:04]} d5 {[%clk 01:43:00]} {[%emt 00:00:08]} 9. Bd3
{[%clk 01:39:13]} {[%emt 00:01:59]} O-O {[%clk 01:34:23]} {[%emt 00:09:09]} 10.
O-O {[%clk 01:38:09]} {[%emt 00:01:34]} d4 {[%clk 01:34:22]} {[%emt 00:00:31]}
11. Ne2 {[%clk 01:37:52]} {[%emt 00:00:47]} e5 {[%clk 01:33:30]} {[%emt
00:01:22]} 12. Ng3 {[%clk 01:33:57]} Qb6 {[%clk 01:27:16]} {[%emt 00:11:08]} 13.
h3 {[%clk 01:27:16]} Be6 {[%clk 01:23:40]} {[%emt 00:11:19]} 14. b4 {[%clk
01:25:25]} Rac8 {[%clk 01:18:21]} {[%emt 00:08:09]} 15. f4 {[%clk 01:23:32]}
exf4 {[%clk 01:14:56]} {[%emt 00:06:19]} 16. Bxf4 {[%clk 01:23:30]} Nd7 {[%clk
01:06:28]} {[%emt 00:09:29]} 17. Qh5 {[%clk 01:16:49]} g6 {[%clk 01:06:12]}
{[%emt 00:07:57]} 18. Qh6 {[%clk 01:14:48]} Nce5 {[%clk 01:04:36]} {[%emt
00:04:37]} 19. Bxe5 {[%clk 00:42:19]} Nxe5 {[%clk 01:04:33]} {[%emt 00:33:31]}
20. Rf6 {[%clk 00:42:10]} Nxd3 {[%clk 00:42:37]} {[%emt 00:23:06]} 21. cxd3
{[%clk 00:42:33]} Qb5 {[%clk 00:41:45]} {[%emt 00:01:29]} 22. Raf1 {[%clk
00:38:30]} Qxd3 {[%clk 00:30:25]} {[%emt 00:16:23]} 23. R1f3 {[%clk 00:37:23]}
Qb1+ {[%clk 00:28:21]} {[%emt 00:04:11]} 24. Kh2 {[%clk 00:35:03]} Qc1 {[%clk
00:25:22]} {[%emt 00:08:10]} 25. R6f4 {[%clk 00:34:33]} f6 {[%clk 00:16:46]}
{[%emt 00:08:16]} 26. e5 {[%clk 00:33:07]} Bd5 {[%clk 00:08:50]} {[%emt
00:10:22]} 27. Nh5 {[%clk 00:19:34]} {[%emt 00:14:04]} Rc7 {[%clk 00:08:31]}
{[%emt 00:00:49]} 28. Rf1 {[%clk 00:19:30]} {[%emt 00:00:34]} Qd2 {[%clk
00:05:41]} {[%emt 00:03:18]} 29. R1f2 {[%clk 00:17:45]} {[%emt 00:02:17]} Qc1
{[%clk 00:04:32]} {[%emt 00:01:38]} 30. Nxf6+ {[%clk 00:17:08]} {[%emt
00:01:06]} Rxf6 {[%clk 00:04:56]} {[%emt 00:00:06]} 31. exf6 {[%clk 00:17:23]}
{[%emt 00:00:16]} d3 {[%clk 00:04:49]} {[%emt 00:00:37]} 32. f7+ {[%clk
00:15:18]} {[%emt 00:02:35]} Rxf7 {[%clk 00:04:24]} {[%emt 00:00:55]} 33. Qg5
{[%clk 00:15:28]} {[%emt 00:00:19]} Rxf4 {[%clk 00:00:50]} {[%emt 00:04:05]} 34.
Qxd5+ {[%clk 00:15:27]} {[%emt 00:00:31]} Kg7 {[%clk 00:00:32]} {[%emt
00:00:48]} 35. Qe5+ {[%clk 00:15:51]} {[%emt 00:00:06]} Kg8 {[%clk 00:00:40]}
{[%emt 00:00:22]} 36. Qxf4 {[%clk 00:16:06]} {[%emt 00:00:15]} Qxf4+ {[%clk
00:00:37]} {[%emt 00:00:33]} 37. Rxf4 {[%clk 00:16:30]} {[%emt 00:00:06]} d2
{[%clk 00:01:04]} {[%emt 00:00:04]} 38. Rd4 {[%emt 00:00:16]} 1-0

[Event "Masters Tournament (MTO)"]
[Site "Biel, Switzerland"]
[Date "2026.07.14"]
[Round "2.46"]
[White "Joly, Fabrice"]
[Black "Stevens, Christian"]
[Result "1/2-1/2"]
[TimeControl "100+30+30sec/move"]
[WhiteTitle "-"]
[BlackTitle "-"]
[WhiteFideId "612235"]
[BlackFideId "649090"]
[WhiteElo "1907"]
[BlackElo "2014"]

1. e4 {[%clk 01:40:57]} {[%emt 00:00:03]} c5 {[%clk 01:40:51]} {[%emt
00:00:09]} 2. Nf3 {[%clk 01:41:16]} {[%emt 00:00:10]} d6 {[%clk 01:41:14]}
{[%emt 00:00:08]} 3. d4 {[%clk 01:41:34]} {[%emt 00:00:11]} cxd4 {[%clk
01:41:38]} {[%emt 00:00:07]} 4. Nxd4 {[%clk 01:41:57]} {[%emt 00:00:07]} Nf6
{[%clk 01:42:01]} {[%emt 00:00:06]} 5. Nc3 {[%clk 01:42:22]} {[%emt 00:00:06]}
e6 {[%clk 01:42:22]} {[%emt 00:00:09]} 6. g3 {[%clk 01:38:00]} {[%emt
00:04:53]} Be7 {[%clk 01:40:51]} {[%emt 00:02:00]} 7. Bg2 {[%clk 01:38:24]}
{[%emt 00:00:07]} a6 {[%clk 01:40:42]} {[%emt 00:00:39]} 8. a4 {[%clk
01:37:05]} {[%emt 00:01:49]} Qc7 {[%clk 01:40:23]} {[%emt 00:00:48]} 9. O-O
{[%clk 01:36:39]} {[%emt 00:00:59]} Nc6 {[%clk 01:40:19]} {[%emt 00:00:32]} 10.
Nxc6 {[%clk 01:22:40]} {[%emt 00:14:31]} bxc6 {[%clk 01:40:39]} {[%emt
00:00:09]} 11. a5 {[%clk 01:19:02]} {[%emt 00:04:09]} Rb8 {[%clk 01:34:03]}
{[%emt 00:07:05]} 12. b3 {[%clk 01:16:27]} {[%emt 00:03:05]} O-O {[%clk
01:33:07]} {[%emt 00:01:25]} 13. Be3 {[%clk 01:12:33]} {[%emt 00:04:25]} Nd7
{[%clk 01:28:30]} {[%emt 00:05:07]} 14. Qd2 {[%clk 01:05:24]} {[%emt 00:07:40]}
c5 {[%clk 01:23:08]} {[%emt 00:05:51]} 15. Na4 {[%clk 00:58:32]} {[%emt
00:07:22]} Bb7 {[%clk 01:15:17]} {[%emt 00:08:21]} 16. Nb2 {[%clk 00:52:16]}
{[%emt 00:06:47]} Bc6 {[%clk 01:00:46]} {[%emt 00:14:59]} 17. Rfd1 {[%clk
00:45:46]} {[%emt 00:07:01]} Qb7 {[%clk 00:47:01]} {[%emt 00:14:15]} 18. Nc4
{[%clk 00:20:39]} {[%emt 00:25:37]} Bxe4 {[%clk 00:46:27]} {[%emt 00:01:04]} 19.
Bxe4 {[%clk 00:20:53]} {[%emt 00:00:17]} Qxe4 {[%clk 00:46:40]} {[%emt
00:00:15]} 20. Nxd6 {[%clk 00:19:19]} {[%emt 00:02:05]} Bxd6 {[%clk 00:46:34]}
{[%emt 00:00:35]} 21. Qxd6 {[%clk 00:19:37]} {[%emt 00:00:13]} Ne5 {[%clk
00:46:32]} {[%emt 00:00:31]} 22. Qxa6 {[%clk 00:11:33]} {[%emt 00:10:39]} Nf3+
{[%clk 00:45:35]} 23. Kf1 {[%clk 00:10:59]} {[%emt 00:00:27]} Nxh2+ {[%clk
00:44:14]} {[%emt 00:01:50]} 24. Kg1 {[%clk 00:11:06]} {[%emt 00:00:23]} Nf3+
{[%clk 00:40:04]} {[%emt 00:04:39]} 25. Kf1 {[%clk 00:10:55]} {[%emt 00:00:42]}
Qxc2 {[%clk 00:36:06]} {[%emt 00:04:29]} 26. Qc4 {[%clk 00:09:12]} {[%emt
00:02:14]} Qf5 {[%clk 00:31:42]} {[%emt 00:04:53]} 27. Kg2 {[%clk 00:05:43]}
{[%emt 00:03:59]} Ne5 {[%clk 00:30:08]} {[%emt 00:02:02]} 28. Qf4 {[%clk
00:05:07]} {[%emt 00:01:08]} Rxb3 {[%clk 00:28:09]} {[%emt 00:02:29]} 29. Qxf5
{[%clk 00:04:33]} {[%emt 00:01:04]} exf5 {[%clk 00:28:31]} {[%emt 00:00:08]} 30.
Bxc5 {[%clk 00:04:35]} {[%emt 00:00:28]} Ra8 {[%clk 00:27:30]} {[%emt
00:01:30]} 31. a6 {[%clk 00:04:09]} {[%emt 00:00:57]} f6 {[%clk 00:24:01]}
{[%emt 00:03:59]} 32. a7 {[%clk 00:03:25]} {[%emt 00:01:14]} Rb7 {[%clk
00:23:17]} {[%emt 00:01:13]} 33. Rab1 {[%clk 00:03:07]} {[%emt 00:00:46]} Rbxa7
{[%clk 00:22:52]} {[%emt 00:00:58]} 34. Bxa7 {[%clk 00:03:32]} {[%emt
00:00:05]} Rxa7 {[%clk 00:23:14]} {[%emt 00:00:08]} 35. Rd2 {[%clk 00:02:18]}
{[%emt 00:01:42]} Kf7 {[%clk 00:23:17]} {[%emt 00:00:28]} 36. Rb4 {[%clk
00:02:19]} {[%emt 00:00:31]} g5 {[%clk 00:22:39]} {[%emt 00:01:07]} 37. Re2
{[%clk 00:01:42]} {[%emt 00:01:07]} g4 {[%clk 00:22:13]} {[%emt 00:00:55]} 38.
Rb3 {[%clk 00:01:27]} {[%emt 00:00:47]} Kg6 {[%clk 00:22:12]} {[%emt 00:00:29]}
39. Rbe3 {[%clk 00:01:18]} {[%emt 00:00:39]} Ra5 {[%clk 00:21:12]} {[%emt
00:01:31]} 40. Rc2 {[%clk 00:01:22]} {[%emt 00:00:26]} Kg5 {[%clk 00:20:08]}
{[%emt 00:01:34]} 41. Rc7 {[%clk 00:24:19]} {[%emt 00:07:33]} h5 {[%clk
00:47:14]} {[%emt 00:03:23]} 42. Rg7+ {[%clk 00:22:07]} {[%emt 00:02:42]} Kh6
{[%clk 00:47:09]} {[%emt 00:00:36]} 43. Rg8 {[%clk 00:21:35]} {[%emt 00:01:02]}
Ra4 {[%clk 00:42:31]} {[%emt 00:05:07]} 44. Rh8+ {[%clk 00:16:30]} {[%emt
00:05:36]} Kg5 {[%clk 00:40:40]} {[%emt 00:02:20]} 45. Rg8+ {[%clk 00:16:04]}
{[%emt 00:00:57]} Ng6 {[%clk 00:37:55]} {[%emt 00:03:14]} 46. Re7 {[%clk
00:14:36]} {[%emt 00:01:58]} Kh6 {[%clk 00:35:05]} {[%emt 00:03:19]} 47. Reg7
{[%clk 00:12:39]} {[%emt 00:02:28]} Ne5 {[%clk 00:35:24]} {[%emt 00:00:10]} 48.
Re7 {[%clk 00:12:13]} {[%emt 00:00:57]} f4 {[%clk 00:30:38]} {[%emt 00:05:16]}
49. gxf4 {[%clk 00:05:36]} {[%emt 00:07:08]} Rxf4 {[%clk 00:29:00]} {[%emt
00:02:08]} 50. Rh8+ {[%clk 00:05:49]} {[%emt 00:00:16]} Kg5 {[%clk 00:27:35]}
{[%emt 00:01:55]} 51. Reh7 {[%clk 00:05:23]} {[%emt 00:00:57]} Rf3 {[%clk
00:26:39]} {[%emt 00:01:25]} 1/2-1/2